fUSD/lending_fUSD_20251223
["ID","MTS","AMOUNT","RATE_DAILY","PERIOD"]
[399548638,1766473899366,-500.0,0.00038329,60]
[399548639,1766473899375,-252.61614044,0.00038329,60]
[399548640,1766473899385,-171.44382844,0.00038329,60]
[399548641,1766473899394,-500.0,0.00038329,60]
[399548642,1766473899639,-170.04039859,0.00038329,60]
[399548643,1766473899670,-500.0,0.00038329,60]
[399548644,1766473899679,-500.0,0.00038329,60]
[399548645,1766473899688,-500.0,0.00038329,60]
[399548646,1766473899698,-500.0,0.00038329,60]
[399548647,1766473899707,-500.0,0.00038329,60]
[399548648,1766473899716,-500.0,0.00038329,60]
[399548649,1766473899726,-500.0,0.00038329,60]
[399548650,1766473899735,-587.0,0.00038329,60]
[399548651,1766473899744,-1000.0,0.00038355,30]
[399548652,1766473899753,-1000.0,0.00038356,5]
[399548653,1766473899763,-486.0,0.00038356,60]
[399548654,1766473899772,-500.0,0.00038356,60]
[399548655,1766473899781,-376.72159482,0.00038356,60]
[399548656,1766473899791,-500.0,0.00038356,60]
[399548657,1766473899800,-500.0,0.00038356,60]
[399548658,1766473899810,-500.0,0.00038356,60]
[399548659,1766473899819,-500.0,0.00038356,60]
[399548660,1766473899828,-500.0,0.00038356,60]
[399548661,1766473899838,-500.0,0.00038356,60]
[399548662,1766473899847,-472.80066621,0.00038356,60]
[399548663,1766473899857,-587.0,0.00038356,60]
[399548664,1766473899867,-486.0,0.00038384,60]
[399548665,1766473899876,-500.0,0.00038384,60]
[399548666,1766473899886,-500.0,0.00038384,60]
[399548667,1766473899895,-500.0,0.00038384,60]
[399548668,1766473899906,-500.0,0.00038384,60]
[399548669,1766473899915,-500.0,0.00038384,60]
[399548670,1766473899934,-500.0,0.00038384,60]
[399548671,1766473899948,-500.0,0.00038384,60]
[399548672,1766473899958,-587.0,0.00038384,60]
[399548673,1766473899967,-486.0,0.00038411,60]
[399548674,1766473899978,-500.0,0.00038411,60]
[399548675,1766473899988,-500.0,0.00038411,60]
[399548676,1766473899998,-500.0,0.00038411,60]
[399548677,1766473900008,-500.0,0.00038411,60]
[399548678,1766473900018,-500.0,0.00038411,60]
[399548679,1766473900028,-500.0,0.00038411,60]
[399548680,1766473900038,-500.0,0.00038411,60]
[399548681,1766473900047,-587.0,0.00038411,60]
[399548682,1766473900057,-486.0,0.00038438,60]
[399548683,1766473900066,-500.0,0.00038438,60]
[399548684,1766473900076,-500.0,0.00038438,60]
[399548685,1766473900086,-500.0,0.00038438,60]
[399548686,1766473900097,-500.0,0.00038438,60]
[399548687,1766473900107,-500.0,0.00038438,60]
[399548688,1766473900116,-500.0,0.00038438,60]
[399548689,1766473900125,-483.95186785,0.00038438,60]
[399548690,1766473900135,-587.0,0.00038438,60]
[399548691,1766473900145,-600.0343025,0.00038444,2]
[399548692,1766473900155,-367.01771534,0.00038444,2]
[399548693,1766473900169,-582.0667188,0.00038444,2]
[399548694,1766473900178,-793.51220404,0.00038444,2]
[399548695,1766473900192,-485.42189551,0.00038444,2]
[399548696,1766473900202,-771.03915259,0.00038444,2]
[399548697,1766473900212,-801.56874199,0.00038444,2]
[399548698,1766473900222,-795.84361987,0.00038444,2]
[399548699,1766473900232,-795.84361987,0.00038444,2]
[399548700,1766473900242,-795.84361987,0.00038444,2]
[399548701,1766473900252,-795.84361987,0.00038444,2]
[399548702,1766473900261,-795.84361987,0.00038444,2]
[399548703,1766473900271,-795.84361987,0.00038444,2]
[399548704,1766473900282,-795.84361987,0.00038444,2]
[399548705,1766473900291,-795.84361987,0.00038444,2]
[399548706,1766473900301,-300.28171199,0.00038444,2]
[399548707,1766473900311,-796.01537354,0.00038444,2]
[399548708,1766473900320,-300.0,0.00038444,2]
[399548709,1766473900330,-796.01537354,0.00038444,2]
[399548710,1766473900339,-300.0,0.00038444,2]
[399548711,1766473900349,-762.49047724,0.00038444,2]
[399548712,1766473900358,-300.0,0.00038444,2]
[399548713,1766473900367,-300.0,0.00038444,2]
[399548714,1766473900376,-300.0,0.00038444,2]
[399548715,1766473900386,-354.69460497,0.00038444,2]
[399548716,1766473900395,-301.71104301,0.00038444,2]
[399548717,1766473900405,-301.58838369,0.00038444,2]
[399548718,1766473900414,-486.0,0.00038466,60]
[399548719,1766473900423,-500.0,0.00038466,60]
[399548720,1766473900433,-500.0,0.00038466,60]
[399548721,1766473900442,-628.49364551,0.00038466,60]
[399548722,1766473900451,-500.0,0.00038466,60]
[399548723,1766473900462,-500.0,0.00038466,60]
[399548724,1766473900475,-500.0,0.00038466,60]
[399548725,1766473900484,-587.0,0.00038466,60]
[399548726,1766473900494,-486.0,0.00038493,60]
[399548727,1766473900504,-500.0,0.00038493,60]
[399548728,1766473900513,-500.0,0.00038493,60]
[399548729,1766473900522,-500.0,0.00038493,60]
[399548730,1766473900532,-500.0,0.00038493,60]
[399548731,1766473900541,-500.0,0.00038493,60]
[399548732,1766473900551,-587.0,0.00038493,60]
[399548733,1766473900560,-156.9,0.000385,14]
[399548734,1766473900569,-12213.78,0.000385,30]
[399548735,1766473900579,-486.0,0.00038521,60]
[399548736,1766473900588,-500.0,0.00038521,60]
[399548737,1766473900597,-500.0,0.00038521,60]
[399548738,1766473900607,-500.0,0.00038521,60]
[399548739,1766473900617,-500.0,0.00038521,60]
[399548740,1766473900626,-500.0,0.00038521,60]
[399548741,1766473900635,-587.0,0.00038521,60]
[399548742,1766473900645,-1000.0,0.00038536,30]
[399548743,1766473900654,-486.0,0.00038548,60]
[399548744,1766473900663,-500.0,0.00038548,60]
[399548745,1766473900673,-500.0,0.00038548,60]
[399548746,1766473900682,-500.0,0.00038548,60]
[399548747,1766473900692,-500.0,0.00038548,60]
[399548748,1766473900701,-500.0,0.00038548,60]
[399548749,1766473900711,-587.0,0.00038548,60]
[399548750,1766473900720,-486.0,0.00038575,60]
[399548751,1766473900730,-500.0,0.00038575,60]
[399548752,1766473900740,-218.79470444,0.00038575,60]
[399548753,1766473900749,-500.0,0.00038575,60]
[399548754,1766473900759,-500.0,0.00038575,60]
[399548755,1766473900768,-587.0,0.00038575,60]
[399548756,1766473900778,-189.95,0.000386,14]
[399548757,1766473900787,-486.0,0.00038603,60]
[399548758,1766473900797,-500.0,0.00038603,60]
[399548759,1766473900808,-183.30569166,0.00038603,60]
[399548760,1766473900818,-587.0,0.00038603,60]
[399548761,1766473900828,-464.86,0.0003863,2]
[399548762,1766473900838,-464.86,0.0003863,2]
[399548763,1766473900847,-464.86,0.0003863,2]
[399548764,1766473900858,-464.86,0.0003863,2]
[399548765,1766473900867,-150.0,0.0003863,2]
[399548766,1766473900877,-464.86,0.0003863,2]
[399548767,1766473900887,-150.0,0.0003863,2]
[399548768,1766473900896,-150.0,0.0003863,2]
[399548769,1766473900906,-150.0,0.0003863,2]
[399548770,1766473900915,-150.0,0.0003863,2]
[399548771,1766473900925,-150.0,0.0003863,2]
[399548772,1766473900935,-152.32,0.0003863,2]
[399548773,1766473900944,-486.0,0.0003863,60]
[399548774,1766473900954,-500.0,0.0003863,60]
[399548775,1766473900963,-587.0,0.0003863,60]
[399548776,1766473900973,-486.0,0.00038658,60]
[399548777,1766473900982,-500.0,0.00038658,60]
[399548778,1766473900992,-587.0,0.00038658,60]
[399548779,1766473901002,-486.0,0.00038685,60]
[399548780,1766473901012,-500.0,0.00038685,60]
[399548781,1766473901022,-587.0,0.00038685,60]
[399548782,1766473901031,-486.0,0.00038712,60]
[399548783,1766473901041,-415.0,0.00038712,60]
[399548784,1766473901051,-587.0,0.00038712,60]
[399548785,1766473901060,-486.0,0.0003874,60]
[399548786,1766473901070,-587.0,0.0003874,60]
[399548787,1766473901080,-985.1625104,0.00038767,5]
[399548788,1766473901090,-486.0,0.00038767,60]
[399548789,1766473901100,-587.0,0.00038767,60]
[399548790,1766473901110,-486.0,0.00038795,60]
[399548791,1766473901119,-587.0,0.00038795,60]
[399548792,1766473901129,-10236.1936842,0.000388,2]
[399548793,1766473901139,-486.0,0.00038822,60]
[399548794,1766473901149,-587.0,0.00038822,60]
[399548795,1766473901159,-486.0,0.00038849,60]
[399548796,1766473901168,-587.0,0.00038849,60]
[399548797,1766473901178,-486.0,0.00038877,60]
[399548798,1766473901187,-587.0,0.00038877,60]
[399548799,1766473901197,-687.78720095,0.000389,2]
[399548800,1766473901208,-158.00446478,0.000389,2]
[399548801,1766473901217,-10003.3,0.00038904,2]
[399548802,1766473901227,-499.7587784,0.00038904,60]
[399548803,1766473901237,-593.0,0.00038904,60]
[399548804,1766473901247,-612.0,0.0003897,2]
[399548805,1766473901257,-1326.0,0.0003897,2]
[399548806,1766473901268,-631.729,0.0003897,2]
[399548807,1766473901277,-1198.0,0.0003897,2]
[399548808,1766473901287,-2430.0,0.0003897,2]
[399548809,1766473901296,-3252310.3127757,0.00038973,9]
[399548810,1766473901306,-6311.29369997,0.00038998,2]
[399548811,1766473901315,-13110.4693912,0.00038998,2]
[399548812,1766473901325,-9177.32857383,0.00038998,4]
[399548813,1766473901334,-746.57599944,0.00038998,4]
[399548814,1766473901344,-1583.55066124,0.00038998,4]
[399548815,1766473901353,-1000.0,0.00038999,28]
[399548816,1766473901362,-1000.0,0.00038999,25]
[399548817,1766473901372,-2725440.74466771,0.00039,2]
[399548818,1766473901381,-28602079.61679712,0.00039,2]
[399548819,1766473901391,-1044454.48110701,0.00039,2]
[399548820,1766473901400,-703761.03008843,0.00039,2]
[399548821,1766473901410,-10000.12395833,0.00039,5]
[399548822,1766473901419,-151.6,0.00039,2]
[399548823,1766473901429,-30560.28975348,0.00039,2]
[399548824,1766473901438,-5596945.04025877,0.00039,2]
[399548825,1766473901448,-1661200.86728075,0.00039,2]
[399548826,1766473901457,-519553.96450905,0.00039,2]
[399548827,1766473901467,-594251.98578167,0.00039,2]
[399548828,1766473901481,-81777.2528493,0.00039,2]
[399548829,1766473901490,-293822.44039383,0.00039,2]
[399548830,1766473901500,-816967.45106037,0.00039,2]
[399548831,1766473901510,-245289.46907383,0.00039,2]
[399548832,1766473902043,-26740.53155755,0.00039,2]
[399548833,1766473902169,-152.30639334,0.0002177,2]
[399548834,1766473902179,-151.0,0.00024658,2]
[399548835,1766473902188,-29.51192866,0.0003297,2]
[399548836,1766473902200,-534.48807134,0.0003297,2]
[399548837,1766473902210,-564.0,0.0003597,2]
[399548838,1766473902219,-112.94970203,0.00036986,2]
[399548839,1766473902230,-65.55029797,0.00036986,2]
[399548840,1766473902240,-464.86,0.00037808,2]
[399548841,1766473902251,-564.0,0.0003897,2]
[399548842,1766473902260,-6321.53678089,0.00039,2]
[399548843,1766473902272,-356.32526789,0.00039,2]
[399548846,1766474023730,155.37,5.48e-06,120]
[399548857,1766474234916,484.20352824,0.000176,30]
[399548874,1766474754156,3862.73658109,0.0001299,2]
[399548886,1766475032147,-162.701,0.00014469,2]
[399548887,1766475032157,-1760.26,0.00014469,2]
[399548888,1766475032168,-152.30639334,0.00014663,2]
[399548890,1766475032178,-483.64025614,0.00014664,2]
[399548892,1766475032187,-1007.51737927,0.00014664,2]
[399548894,1766475032199,-2738.33598373,0.00014664,2]
[399548897,1766475032279,-7193.2231045,0.00014664,2]
[399548898,1766475032378,-2082.37526384,0.00014664,2]
[399548899,1766475032390,-776.28283243,0.00014664,2]
[399548900,1766475032403,-555.66208952,0.00014664,2]
[399548901,1766475032415,-250.0,0.00014664,2]
[399548903,1766475032427,-4041.15047749,0.00014664,2]
[399548964,1766475038292,-500.0,0.00014663,2]
[399548965,1766475038304,-266.18486186,0.00014663,2]
[399548966,1766475038316,-500.0,0.00014663,2]
[399548967,1766475038327,-500.0,0.00014663,2]
[399548968,1766475038338,-151.63599426,0.00014663,2]
[399548969,1766475038348,-2082.17914388,0.00014664,2]
[399548970,1766475038361,-2529.78912709,0.00014664,2]
[399548971,1766475038373,-1966.54436356,0.00014664,2]
[399548972,1766475038386,-20960.59918484,0.00014664,2]
[399548973,1766475038398,-1563.61745328,0.00014664,2]
[399548974,1766475038410,-696.74,0.00014664,2]
[399548975,1766475038423,-774.7752605,0.00014664,2]
[399548976,1766475038434,-943.4417697,0.00014664,2]
[399548977,1766475038447,-3730.39045448,0.00014664,2]
[399548978,1766475038530,-429875.0,0.00014664,2]
[399548997,1766475040333,-1690.66002,0.00014663,2]
[399548998,1766475040345,-553.52635165,0.00014663,2]
[399548999,1766475040356,-364.55921435,0.00014664,2]
[399549000,1766475040367,-429.59999994,0.00014664,2]
[399549001,1766475040379,-415.57810356,0.00014664,2]
[399549002,1766475040391,-405.28705655,0.00014664,2]
[399549003,1766475040403,-463.67418489,0.00014664,2]
[399549004,1766475040414,-481.57727047,0.00014664,2]
[399549005,1766475040577,-879.015,0.00014664,2]
[399549006,1766475040595,-3336.62340853,0.00014664,2]
[399549007,1766475040606,-788.50317115,0.00014664,2]
[399549008,1766475040753,-60701.80358013,0.00014664,2]
[399549019,1766475043571,-18567.30510276,0.00014664,2]
[399549020,1766475043657,-291.76358247,0.00014664,2]
[399549021,1766475043669,-4481.67,0.00014664,2]
[399549056,1766475046328,-7559.44375685,0.00014664,2]
[399549057,1766475046340,-2000.0,0.00014664,2]
[399549058,1766475046426,-805.40338542,0.00014664,2]
[399549059,1766475046447,-172837.02035859,0.00014664,2]
[399549064,1766475274833,736.46,0.00013699,2]
[399549086,1766475567359,5000.0,0.00014,2]
[399549093,1766475665103,302.61933974,0.00014,2]
[399549136,1766476231341,-264.0,0.0001382,2]
[399549137,1766476231350,-200.0,0.0001382,2]
[399549138,1766476231360,-250.0,0.0001391,2]
[399549139,1766476231369,-173.52956503,0.00014,2]
[399549140,1766476231380,-453.95773948,0.00014,2]
[399549141,1766476231392,-349.17285286,0.00014,2]
[399549142,1766476231403,-212.72050289,0.00014,2]
[399549143,1766476231412,-266.86295282,0.0001402,2]
[399549144,1766476231425,-421.90704718,0.0001402,2]
[399549145,1766476231435,-12.67018944,0.000141,2]
[399549146,1766476231446,-436.60011272,0.000141,2]
[399549147,1766476231469,-867.26202952,0.000141,2]
[399549148,1766476231481,-932.78264644,0.000141,2]
[399549149,1766476231602,-2750.68502188,0.000141,2]
[399549150,1766476231611,-1200.0,0.00014171,2]
[399549151,1766476231620,-300.0,0.00014172,2]
[399549152,1766476231629,-300.0,0.00014172,2]
[399549154,1766476231639,-547.46538815,0.00014173,2]
[399549156,1766476231648,-502.65078725,0.00014173,2]
[399549158,1766476231657,-500.0,0.00014173,2]
[399549160,1766476231666,-500.0,0.00014173,2]
[399549162,1766476231676,-500.0,0.00014173,2]
[399549164,1766476231685,-500.0,0.00014173,2]
[399549166,1766476231695,-500.0,0.00014173,2]
[399549168,1766476231704,-506.70149781,0.00014173,2]
[399549170,1766476231713,-502.35105933,0.00014173,2]
[399549172,1766476231722,-500.0,0.00014173,2]
[399549174,1766476231731,-502.33266332,0.00014173,2]
[399549176,1766476231741,-500.0,0.00014173,2]
[399549178,1766476231750,-1123.9,0.00014173,2]
[399549180,1766476231759,-1123.9,0.00014447,2]
[399549181,1766476231768,-3450.50858226,0.00014464,2]
[399549183,1766476231779,-837.13412801,0.00014464,2]
[399549194,1766476237469,-543.57890316,0.00014464,2]
[399549286,1766476239533,-806.57330399,0.00014464,2]
[399549287,1766476239546,-534.0,0.00014464,2]
[399549288,1766476239591,-2987.97519157,0.00014464,2]
[399549289,1766476239603,-305.55524937,0.00014464,2]
[399549290,1766476239615,-6398.5000765,0.00014464,2]
[399549291,1766476239625,-2019.76773444,0.00014464,2]
[399549292,1766476239635,-191.0768443,0.00014464,2]
[399549293,1766476239644,-5000.0,0.000145,2]
[399549294,1766476239654,-150.0,0.0001452,2]
[399549295,1766476239664,-334.52680147,0.0001452,2]
[399549296,1766476239674,-6947.58653586,0.00014521,2]
[399549297,1766476239686,-4348.12435315,0.00014521,2]
[399549298,1766476239697,-2280.9972858,0.00014521,2]
[399549299,1766476239708,-1956.161805,0.00014521,2]
[399549300,1766476239719,-653.76080498,0.00014521,2]
[399549301,1766476239731,-971.65257382,0.00014521,2]
[399549302,1766476239743,-274.81085418,0.00014521,2]
[399549303,1766476239755,-570.39513047,0.00014521,2]
[399549304,1766476239766,-5350.87,0.00014521,2]
[399549305,1766476239777,-976645.64065674,0.00014521,2]
[399549306,1766476239787,-1000.0,0.00014564,2]
[399549307,1766476239797,-282.6661,0.00014564,2]
[399549308,1766476239806,-1382.47,0.00014582,2]
[399549309,1766476239816,-403.36719742,0.00014587,2]
[399549310,1766476239825,-223.97693797,0.00014621,2]
[399549311,1766476239835,-209.0,0.00014649,2]
[399549312,1766476239845,-999.0,0.0001466,3]
[399549313,1766476239855,-234.07478008,0.00014703,2]
[399549314,1766476239868,-216.53235299,0.00014721,2]
[399549315,1766476239877,-500.0,0.00014721,2]
[399549316,1766476239887,-500.0,0.00014721,2]
[399549317,1766476239896,-1000.0,0.00014721,2]
[399549318,1766476239907,-385.4280122,0.00014721,2]
[399549319,1766476239922,-500.0,0.00014721,2]
[399549320,1766476239932,-1000.0,0.00014721,2]
[399549321,1766476239942,-1123.9,0.00014721,2]
[399549322,1766476239952,-15863.82543477,0.00014735,2]
[399549323,1766476239962,-2019.7677344,0.00014735,2]
[399549324,1766476239972,-286.07598771,0.00014763,2]
[399549325,1766476239982,-203.0,0.00014785,2]
[399549326,1766476239995,-1000.0,0.00014834,2]
[399549327,1766476240006,-1047.49903492,0.00014895,2]
[399549328,1766476240015,-3278.6922733,0.00014905,2]
[399549329,1766476240024,-453.9577395,0.00014905,2]
[399549330,1766476240034,-22655.8572636,0.00014905,2]
[399549331,1766476240044,-95764.0028015,0.00014905,2]
[399549332,1766476240054,-13585.2102106,0.00014905,2]
[399549333,1766476240064,-86336.9430884,0.00014905,2]
[399549334,1766476240074,-1476.9458097,0.00014905,2]
[399549335,1766476240083,-1123.9,0.00014995,2]
[399549336,1766476240093,-15863.82543477,0.00015005,2]
[399549337,1766476240102,-2019.7677344,0.00015005,2]
[399549338,1766476240112,-150.0,0.00015083,2]
[399549339,1766476240122,-250.0,0.00015202,2]
[399549340,1766476240132,-1123.9,0.00015268,2]
[399549341,1766476240142,-1109.34995974,0.00015268,2]
[399549342,1766476240152,-1476.24710438,0.00015268,2]
[399549343,1766476240162,-15863.82543477,0.00015276,2]
[399549344,1766476240171,-2019.7677344,0.00015276,2]
[399549345,1766476240181,-150.0,0.00015288,2]
[399549346,1766476240191,-150.0,0.00015288,2]
[399549347,1766476240200,-150.0,0.00015288,2]
[399549348,1766476240210,-150.0,0.00015288,2]
[399549349,1766476240219,-150.0,0.00015288,2]
[399549350,1766476240229,-150.0,0.00015288,2]
[399549352,1766476240238,-150.0,0.00015288,2]
[399549353,1766476240249,-150.0,0.00015288,2]
[399549354,1766476240259,-150.0,0.00015288,2]
[399549355,1766476240268,-150.0,0.00015288,2]
[399549356,1766476240278,-150.0,0.00015288,2]
[399549357,1766476240288,-150.0,0.00015288,2]
[399549358,1766476240298,-155.72966081,0.00015288,2]
[399549359,1766476240308,-150.0,0.00015288,2]
[399549360,1766476240317,-150.0,0.00015316,2]
[399549361,1766476240326,-150.0,0.00015323,2]
[399549362,1766476240336,-150.0,0.00015334,2]
[399549363,1766476240346,-150.0,0.00015341,2]
[399549364,1766476240356,-150.0,0.00015344,2]
[399549365,1766476240369,-150.0,0.00015345,2]
[399549366,1766476240379,-150.0,0.00015348,2]
[399549367,1766476240389,-150.0,0.00015358,2]
[399549368,1766476240398,-150.0,0.00015374,2]
[399549369,1766476240408,-150.0,0.00015379,2]
[399549370,1766476240418,-150.0,0.00015394,2]
[399549371,1766476240427,-150.0,0.00015394,2]
[399549372,1766476240437,-191.0768443,0.000154,2]
[399549373,1766476240447,-150.0,0.00015401,2]
[399549374,1766476240457,-150.0,0.00015403,2]
[399549375,1766476240467,-150.0,0.00015409,2]
[399549376,1766476240477,-150.0,0.00015425,2]
[399549377,1766476240492,-150.0,0.00015429,2]
[399549378,1766476240502,-150.0,0.00015432,2]
[399549379,1766476240511,-150.0,0.00015447,2]
[399549380,1766476240522,-150.0,0.00015458,2]
[399549381,1766476240531,-150.0,0.0001546,2]
[399549382,1766476240540,-150.0,0.00015465,2]
[399549383,1766476240550,-150.0,0.0001547,2]
[399549384,1766476240560,-150.0,0.00015471,2]
[399549385,1766476240570,-150.0,0.00015476,2]
[399549386,1766476240580,-150.0,0.00015489,2]
[399549387,1766476240591,-97984.73124674,0.000155,2]
[399549388,1766476240601,-150.0,0.000155,2]
[399549389,1766476240611,-150.0,0.000155,2]
[399549390,1766476240620,-150.0,0.000155,2]
[399549391,1766476240630,-150.0,0.00015514,2]
[399549392,1766476240640,-150.0,0.00015517,2]
[399549393,1766476240650,-150.0,0.00015518,2]
[399549394,1766476240660,-420.0,0.00015523,2]
[399549395,1766476240670,-420.0,0.00015523,2]
[399549396,1766476240680,-150.0,0.0001553,2]
[399549397,1766476240690,-150.0,0.0001553,2]
[399549398,1766476240700,-150.0,0.00015535,2]
[399549399,1766476240710,-1123.9,0.00015542,2]
[399549400,1766476240720,-15863.82543477,0.00015547,2]
[399549401,1766476240729,-2019.7677344,0.00015547,2]
[399549402,1766476240742,-150.0,0.00015547,2]
[399549403,1766476240753,-150.0,0.00015553,2]
[399549404,1766476240763,-150.0,0.00015563,2]
[399549405,1766476240773,-150.0,0.00015571,2]
[399549406,1766476240783,-150.0,0.00015571,2]
[399549407,1766476240792,-150.0,0.00015576,2]
[399549408,1766476240802,-1680.0,0.00015588,2]
[399549409,1766476240812,-150.0,0.00015591,2]
[399549410,1766476240821,-150.0,0.00015604,2]
[399549411,1766476240831,-150.0,0.00015606,2]
[399549412,1766476240841,-150.0,0.00015606,2]
[399549413,1766476240850,-150.0,0.00015609,2]
[399549414,1766476240861,-151.0,0.00015623,2]
[399549415,1766476240871,-150.0,0.00015627,2]
[399549416,1766476240880,-150.0,0.00015627,2]
[399549417,1766476240890,-150.0,0.00015633,2]
[399549418,1766476240899,-151.0,0.00015637,2]
[399549419,1766476240909,-255.0,0.00015638,2]
[399549420,1766476240918,-150.0,0.00015642,2]
[399549421,1766476240928,-150.0,0.00015652,2]
[399549422,1766476240938,-150.0,0.00015655,2]
[399549423,1766476240947,-150.0,0.00015659,2]
[399549424,1766476240957,-150.0,0.00015662,2]
[399549425,1766476240967,-150.0,0.00015665,2]
[399549426,1766476240977,-150.0,0.00015677,2]
[399549427,1766476240987,-150.0,0.00015684,2]
[399549428,1766476240996,-150.0,0.00015691,2]
[399549429,1766476241006,-150.0,0.00015701,2]
[399549430,1766476241015,-150.0,0.00015712,2]
[399549431,1766476241025,-150.0,0.00015712,2]
[399549432,1766476241034,-150.0,0.00015712,2]
[399549433,1766476241044,-150.0,0.00015712,2]
[399549434,1766476241053,-150.0,0.0001572,2]
[399549435,1766476241062,-150.0,0.00015741,2]
[399549436,1766476241072,-150.0,0.00015747,2]
[399549437,1766476241081,-150.0,0.00015748,2]
[399549438,1766476241091,-150.0,0.00015748,2]
[399549439,1766476241101,-150.0,0.00015765,2]
[399549440,1766476241110,-150.0,0.00015773,2]
[399549441,1766476241123,-150.0,0.00015773,2]
[399549442,1766476241132,-150.0,0.00015777,2]
[399549443,1766476241142,-150.0,0.00015783,2]
[399549444,1766476241151,-150.0,0.00015793,2]
[399549445,1766476241161,-150.0,0.00015797,2]
[399549446,1766476241170,-150.0,0.00015806,2]
[399549447,1766476241180,-1123.9,0.00015816,2]
[399549448,1766476241190,-15863.82543477,0.00015817,2]
[399549449,1766476241200,-2019.7677344,0.00015817,2]
[399549450,1766476241210,-150.0,0.00015818,2]
[399549451,1766476241219,-150.0,0.00015818,2]
[399549452,1766476241230,-150.0,0.00015834,2]
[399549453,1766476241240,-150.0,0.00015835,2]
[399549454,1766476241250,-150.0,0.00015839,2]
[399549455,1766476241259,-150.0,0.00015854,2]
[399549456,1766476241269,-150.0,0.00015854,2]
[399549457,1766476241279,-150.0,0.00015854,2]
[399549458,1766476241288,-225.07775319,0.00015856,2]
[399549459,1766476241297,-150.0,0.00015863,2]
[399549460,1766476241701,-150.0,0.00015872,2]
[399549461,1766476241711,-150.0,0.00015884,2]
[399549462,1766476241721,-150.0,0.00015889,2]
[399549463,1766476241730,-150.0,0.00015892,2]
[399549464,1766476241739,-150.0,0.00015894,2]
[399549465,1766476241749,-150.0,0.00015911,2]
[399549466,1766476241762,-150.0,0.00015921,2]
[399549467,1766476241771,-150.0,0.00015925,2]
[399549468,1766476241780,-150.0,0.00015925,2]
[399549469,1766476241790,-150.0,0.00015925,2]
[399549470,1766476241800,-150.0,0.0001593,2]
[399549471,1766476241809,-150.0,0.0001595,2]
[399549472,1766476241819,-150.0,0.00015955,2]
[399549473,1766476241828,-150.0,0.0001596,2]
[399549474,1766476241837,-150.0,0.00015967,2]
[399549475,1766476241846,-150.0,0.00015967,2]
[399549476,1766476241856,-150.0,0.00015976,2]
[399549477,1766476241865,-150.0,0.00015978,2]
[399549478,1766476241874,-150.0,0.00015979,2]
[399549479,1766476241883,-150.0,0.00015995,2]
[399549480,1766476241893,-150.0,0.00016007,2]
[399549481,1766476241902,-150.0,0.00016016,2]
[399549482,1766476241912,-150.0,0.00016016,2]
[399549483,1766476241921,-150.0,0.00016022,2]
[399549484,1766476241930,-150.0,0.00016024,2]
[399549485,1766476241940,-150.0,0.00016031,2]
[399549486,1766476241948,-150.0,0.00016031,2]
[399549487,1766476241958,-150.0,0.00016036,2]
[399549488,1766476241967,-150.0,0.00016043,2]
[399549489,1766476241975,-150.0,0.00016065,2]
[399549490,1766476241985,-150.0,0.00016066,2]
[399549491,1766476241995,-150.0,0.00016068,2]
[399549492,1766476242004,-150.0,0.00016076,2]
[399549493,1766476242013,-150.0,0.0001608,2]
[399549494,1766476242022,-150.0,0.00016084,2]